Cogmind - Beta 16 @@@ ROGUE MODE // 2025.10.27 @ 14:09:13 Player: Jaegerpls Result: Destroyed by GG-N1J(R) with Subdweller Machine Gun Performance ------------- Evolutions (0) 0 Regions Visited (2) 400 Robots Destroyed (13) 65 Value Destroyed (448) 448 Prototype IDs (0) 0 Alien Tech Used (0) 0 Bonus (0) 0 TOTAL SCORE: 913 Bonus ------- None Cogmind --------- Core Integrity 0/250 Matter 300/300 Energy 240/250 System Corruption 0% Temperature Cool (0) Movement Rolling (131) Ox3 Location -10/Subcaves Parts ------- > --- POWER (1) -------- Ion Engine > --- PROPULSION (2) --- Wheel Subdweller Monowheel > --- UTILITY (2) ------ Huge Storage Unit Sensor Array > --- WEAPON (2) ------- Medium Laser Subdweller Laser > --- INVENTORY (25) --- Ion Engine Compact Wheel Subdweller Monowheel Improved Heat Sink Improved Heat Sink Light Humpback Structural Scanner Scrap Shield Medium Laser Medium Laser Medium Laser Medium Laser Peak State ------------ > --- POWER ------------ Ion Engine > --- PROPULSION ------- Wheel Subdweller Monowheel > --- UTILITY ---------- Improved Heat Sink Huge Storage Unit > --- WEAPON ----------- Medium Laser Subdweller Laser > --- INVENTORY -------- Ion Engine Compact Wheel Subdweller Monowheel Improved Heat Sink Light Humpback Structural Scanner Light Armor Plating Scrap Shield Medium Laser Medium Laser Medium Laser Medium Laser [Rating: 12] Favorites ----------- Power Ion Engine Engine Ion Engine Power Core Light Nuclear Core Propulsion Compact Wheel Wheel Compact Wheel Utility Light Armor Plating Device Sensor Array Storage Huge Storage Unit Protection Light Armor Plating Weapon Medium Laser Energy Gun Medium Laser Ballistic Gun Assault Rifle Build | -11 -10 -10 ------- Run | Yrd Mat Sub Slots Evolved . | . . . Power . | . . . Propulsion . | . . . Utility . | . . . Weapon . | . . . Parts Attached 19 | 5 8 6 Power 4 | 1 3 . Engine 3 | 1 2 . Core 1 | . 1 . Reactor . | . . . Propulsion 5 | 2 . 3 Treads . | . . . Leg . | . . . Wheel 5 | 2 . 3 Hover . | . . . Flight . | . . . Utility 5 | 1 2 2 Device 2 | . . 2 Storage 2 | 1 1 . Processor . | . . . Hackware . | . . . Protection 1 | . 1 . Artifact . | . . . Weapon 5 | 1 3 1 Energy Gun 3 | . 2 1 Energy Cannon . | . . . Ballistic Gun 2 | 1 1 . Ballistic Cannon . | . . . Launcher . | . . . Special Weapon . | . . . Impact Weapon . | . . . Slashing Weapon . | . . . Piercing Weapon . | . . . Special Melee Weapon . | . . . Unidentified Prototypes . | . . . Parts Lost . | . . . Power . | . . . Propulsion . | . . . Utility . | . . . Weapon . | . . . Highest Loss Streak . | . . . To Critical Strikes . | . . . Average Backups 7 | 1 6 10 Power 1 | . 1 1 Propulsion . | . . 1 Utility 3 | . 2 4 Weapon 2 | 1 2 3 Tool/Special . | . . . Unused Backups 11 | . 3 8 Power 1 | . . 1 Propulsion . | . . . Utility 5 | . 1 4 Weapon 5 | . 2 3 Tool/Special . | . . . Average Slot Usage (%) 95 | . 91 100 Engine 12 | . 10 14 Core 1 | . 3 . Wheel 28 | . 28 28 Storage 14 | . 14 14 Protection 12 | . 13 11 Energy Gun 17 | . 9 28 Ballistic Gun 6 | . 11 . Peak Build Rating 12 | 5 10 12 Average Rating 7 | 3 7 9 On Entrance 4 | . 5 8 Avg Prop Armor Cover (%) 4 | . . 4 Naked Turns . | . . . Heaviest Build 94 | 10 92 94 Greatest Support 36 | 32 32 36 Greatest Overweight (x) 5 | . 2 5 Average Overweight (x) 1 | . . 2 Largest Inventory Capacity 25 | 8 25 25 Average Capacity 17 | 7 12 25 Most Carried 15 | 3 8 15 Average Carried 8 | 1 6 11 Final Capacity 25 | 8 25 25 Final Carried 14 | 3 8 14 Class Distribution -------------------- 100% | Mutant Dominant Class ---------------- Mutant | -10/Materials Mutant | -10/Subcaves Resources | -11 -10 -10 ----------- Run | Yrd Mat Sub Matter Collected 564 | 207 297 60 Remotely . | . . . Salvage Created 532 | . 363 169 Parts 29 | . 19 10 Haulers Intercepted . | . . . Recyclers Shooed 2 | . 2 . Parts Field Recycled . | . . . Retrieved Matter . | . . . Parts Self-Destructed 6 | . . 6 Prevented . | . . . Parts Restored . | . . . Kills | -11 -10 -10 ------- Run | Yrd Mat Sub Combat Hostiles Destroyed 11 | . 8 3 Guns 11 | . 8 3 Classes Destroyed 4 | . 3 1 Worker 1 | . 1 . Operator 1 | . 1 . Grunt 8 | . 8 . Subdweller 3 | . . 3 Best Kill Streak 3 | . 3 2 Combat Bots Only 2 | . 2 2 Max Kills in Single Turn 1 | . 1 1 Gunslinging . | . . . Exploded . | . . . Melee . | . . . Uniques/NPCs Destroyed . | . . . Combat | -11 -10 -10 -------- Run | Yrd Mat Sub Hostile Shots Fired 68 | . 52 16 Missed 24 | . 17 7 Hits 44 | . 35 9 Projectile 44 | . 35 9 Critical Strikes 1 | . . 1 Damage Taken 612 | . 410 202 Core 258 | . 135 123 Absorbed by Shields . | . . . Core Remaining (%) 100 | 100 . . Volleys Fired 78 | . 67 11 Largest 2 | . 2 2 Hottest 110 | . 100 110 Shots Fired 108 | . 86 22 Gun 108 | . 86 22 Cannon . | . . . Launcher . | . . . Special . | . . . Kinetic 66 | . 66 . Thermal 42 | . 20 22 Explosive . | . . . Electromagnetic . | . . . Robot Hit Streak 13 | . 13 6 Robot Miss Streak 3 | . 3 3 Penetration Max . | . . . Secondary Targets . | . . . Shots Hit Robots 74 | . 60 14 Core Hits 27 | . 21 6 Critical Kills 1 | . 1 . Critical Parts Destroyed . | . . . Critical Strikes 5 | . 3 2 Burn 4 | . 2 2 Destroy 1 | . 1 . Melee Attacks . | . . . Impact . | . . . Slashing . | . . . Piercing . | . . . Sneak Attacks . | . . . Combat Hostiles . | . . . Follow-up Attacks . | . . . Damage Inflicted 930 | . 746 184 Guns 930 | . 746 184 Cannons . | . . . Explosions . | . . . Melee . | . . . Ramming . | . . . Kinetic 535 | . 535 . Thermal 395 | . 211 184 Explosive . | . . . Electromagnetic . | . . . Impact . | . . . Slashing . | . . . Piercing . | . . . Highest Corruption . | . . . Average Corruption . | . . . Corruption Purged . | . . . Corruption Blocked . | . . . Overload Shots . | . . . Overflow Damage . | . . . Projectiles . | . . . Explosions . | . . . Melee . | . . . Knockbacks . | . . . Impact . | . . . Kinetic . | . . . Secondary . | . . . Self-Inflicted Damage . | . . . Shots . | . . . Rammed . | . . . Targets Rammed . | . . . Kicked . | . . . Crushed . | . . . Highest Temperature 261 | . 261 2 Average Temperature 86 | . 90 2 Received Heat Transfer 267 | . 225 42 Siege Activations . | . . . Martial Activations . | . . . Shielding Activations . | . . . Robots Disrupted . | . . . Combat Hostiles . | . . . Robots Corrupted . | . . . Combat Hostiles . | . . . Parts Fried . | . . . Impact Corruptions . | . . . Robots Melted . | . . . Combat Hostiles . | . . . Parts Melted 2 | . 1 1 Heat Transferred 1431 | . 777 654 Parts Sabotaged . | . . . Parts Stolen . | . . . Parts Stripped . | . . . Power Chain Reactions . | . . . Alert | -11 -10 -10 ------- Run | Yrd Mat Sub Maximum Alert Level . | . . . Low Security (%) 100 | 100 100 . Level 1 . | . . . Level 2 . | . . . Level 3 . | . . . Level 4 . | . . . Level 5 . | . . . High Security . | . . . Max Security . | . . . Peak Influence 99 | . 99 . Initial . | . . . Average 25 | . 28 . Influence Increases 251 | . 251 . Destroy 0b10 Robot/C 160 | . 160 . Destroy 0b10 Robot/NC 10 | . 10 . Destroy Leader 40 | . 40 . Successful Hack 11 | . 11 . Lose Combat Pursuer 30 | . 30 . Influence Decreases 251 | . 229 22 Entered New Map 11 | . . 11 Time Decay 240 | . 229 11 Squads Dispatched 1 | . 1 . Investigation . | . . . Extermination . | . . . Reinforcement 1 | . 1 . Assault . | . . . Garrison . | . . . Intercept . | . . . Searches Triggered . | . . . Construction Impeded . | . . . Haulers Reinforced . | . . . Active Scanning Responses . | . . . Cargo Convoy Interrupts . | . . . Stealth | -11 -10 -10 --------- Run | Yrd Mat Sub Distress Signals . | . . . Communications Jammed . | . . . Distress Signals . | . . . Times Spotted 21 | . 17 4 Peak Tracking Total 4 | . 4 2 Tactical Retreats 1 | . 1 . Traps | -11 -10 -10 ------- Run | Yrd Mat Sub Traps Triggered . | . . . Indirectly . | . . . Trap Hack Attempts . | . . . Triggered . | . . . Disarmed . | . . . Reprogrammed . | . . . Reused . | . . . Traps Extracted . | . . . Installed . | . . . Triggered . | . . . Machines | -11 -10 -10 ---------- Run | Yrd Mat Sub Machines Disabled . | . . . Max in Single Turn . | . . . Machines Repaired . | . . . Machines Dismantled . | . . . Machines Sabotaged . | . . . Overloaded Fab Kills . | . . . Hacking | -11 -10 -10 --------- Run | Yrd Mat Sub Machines Accessed 8 | . 6 2 Terminals 4 | . 4 . Fabricators . | . . . Repair Stations . | . . . Recycling Units 2 | . 2 . Scanalyzers . | . . . Garrison Access . | . . . Total Hacks 22 | . 19 3 Successful 15 | . 12 3 Failed 7 | . 7 . Catastrophic 1 | . 1 . Database Lockouts . | . . . Manual 18 | . 18 . Terminals 13 | . 13 . Fabricators . | . . . Repair Stations . | . . . Recycling Units 6 | . 6 . Scanalyzers . | . . . Garrison Access . | . . . Terminal Hacks 3 | . . 3 Record 1 | . . 1 Open Door 1 | . . 1 Release Object 1 | . . 1 Fabricator Hacks . | . . . Repair Station Hacks . | . . . Recycling Unit Hacks 1 | . 1 . Report Inventory 1 | . 1 . Scanalyzer . | . . . Garrison Access Hacks . | . . . Unauthorized Hacks 10 | . 10 . Terminals 7 | . 7 . Track 1 | . 1 . Botnet 3 | . 3 . Skim 3 | . 3 . Fabricators . | . . . Repair Stations . | . . . Recycling Units 3 | . 3 . Reject 2 | . 2 . Recyclers 1 | . 1 . Scanalyzers . | . . . Garrison Access . | . . . Data Cores Recovered . | . . . Used . | . . . Hacking Detections 5 | . 5 . Full Trace Events . | . . . Feedback Events . | . . . Feedback Blocked . | . . . Robot Schematics Acquired . | . . . Robots Built . | . . . Authchips . | . . . Time . | . . . Total Robot Build Rating . | . . . Part Schematics Acquired . | . . . Parts Built . | . . . Authchips . | . . . Time . | . . . Total Part Build Rating . | . . . Part Studies Acquired . | . . . Parts Repaired . | . . . Time . | . . . Parts Recycled . | . . . Recycled Matter . | . . . Retrieved Matter . | . . . Retrieved Components . | . . . Parts Scanalyzed . | . . . Part Schematics Acquired . | . . . Parts Damaged . | . . . Bothacking | -11 -10 -10 ------------ Run | Yrd Mat Sub Used RIF Installer . | . . . Robots Hacked . | . . . Non-combat . | . . . Combat . | . . . Robot Hacks Applied . | . . . Relay Couplers Released . | . . . Fabnet Peak Effective % . | . . . Robots Rewired . | . . . Allies Hacked . | . . . Hacks Repelled . | . . . Allies | -11 -10 -10 -------- Run | Yrd Mat Sub Total Allies . | . . . Largest Group . | . . . Highest-Rated Group . | . . . Highest-Rated Ally . | . . . Total Orders . | . . . Ally Attacks . | . . . Total Damage . | . . . Kills . | . . . Allies Corrupted . | . . . Allies Melted . | . . . Intel | -11 -10 -10 ------- Run | Yrd Mat Sub Active Infowar (turns) 90 | . . 90 Sensors 90 | . . 90 Robot Analysis Total . | . . . Derelict Logs Recovered 1 | . . 1 Drone Launches . | . . . Drone Recoveries . | . . . Exploration | -11 -10 -10 ------------- Run | Yrd Mat Sub Turns Passed 1610 | 67 843 700 Spaces Moved 989 | 50 472 467 Core 3 | 3 . . Treads . | . . . Legs . | . . . Wheels 986 | 47 472 467 Hover . | . . . Flight . | . . . Fastest Speed 50 | 50 100 129 Average Speed 118 | 97 102 137 Slowest Speed 175 | 100 130 175 Overloaded Moves . | . . . Propulsion Burnouts . | . . . Robots Hopped . | . . . Potential Cave-ins . | . . . Cave-ins Triggered . | . . . Exploration Rate (%) 27 | 4 65 14 Regions Visited 2 Branch Regions 1 Pre-discovered Areas 1 | . . 1 Known Exits Taken . | . . . Unknown Exits Taken 2 | 1 1 . Scrap Searched . | . . . Spaces Dug . | . . . Terrain Destroyed . | . . . Melee . | . . . Projectile . | . . . AOE . | . . . Terrain Rammed . | . . . Walls Destroyed . | . . . Machines Disabled . | . . . Actions | -11 -10 -10 --------- Run | Yrd Mat Sub Total 1316 | 66 749 501 Wait 198 | 9 180 9 Move 987 | 49 471 467 Hop . | . . . Pick Up 20 | 3 13 4 Fast Attach 7 | 5 2 . Attach . | . . . Detach . | . . . Swap 12 | . 6 6 Drop 13 | . 10 3 Fire 78 | . 67 11 Melee . | . . . Ram . | . . . Kick . | . . . Crush . | . . . Escape Stasis . | . . . Rewire . | . . . Trap . | . . . Miscellaneous 1 | . . 1 Route ------- -11/Scrapyard -10/Materials (discovered 3 exits: [*Mat] / [*Min] / *Sub) -10/Subcaves History --------- Turn | Location | Event 32 | -11/Scrapyard | Discovered new exit (range 15) 68 | -11/Scrapyard | Entered Materials 314 | -10/Materials | Build established: Mutant 491 | -10/Materials | Discovered new exit (range 14) 687 | -10/Materials | Core integrity fell below 50% 742 | -10/Materials | Discovered new exit (range 7) 888 | -10/Materials | Discovered new exit (range 5) 911 | -10/Materials | Entered Subcaves 912 | -10/Subcaves | Approached by a straggling Scientist 914 | -10/Subcaves | Shifting Twisted Machinery released Sub. Power Source 990 | -10/Subcaves | Core integrity fell below 20% 1250 | -10/Subcaves | Released subatomizers from SUBCON Basin 1611 | -10/Subcaves | Destroyed by GG-N1J(R) with Subdweller Machine Gun Last Messages --------------- >>Release Inventory Accessing inventory controls... Collection purity confirmed 100%... Ejecting SUBCON Basin... Delivery behind schedule, handle with care! 01241_ Connecting with SUBCON Basin Controls... 01250_ Released subatomizers from SUBCON Basin. 01474_ GY-HNR(R) suffers critical hit (Burn). 01477_ GY-HNR(R) destroyed. 01489_ Subatomizers dissect the Wheel. 01489_ Acquired 10 matter. 01502_ Acquired Scrap Shield Fragment. 01503_ Dropped Scrap Shield Fragment. 01504_ Subatomizers dissect the Wheel. 01510_ Dropped Lgt. Armor Plating. 01511_ Acquired 30 matter. 01520_ Acquired Sensor Array. 01525_ Acquired 10 matter. 01532_ Subatomizers dissect the Wheel. 01556_ Subatomizers dissect the Sub. Optics. Map ----- +----------------------------------------------------+ | # ""####### ## ###???????## #??????????????? | | # "" #"##"" #???????# ##??????????????? | | # "" "" ##??????# ##??????????????? | | ##"" # ##?????# ##?????????????? | | ?#" # # ## ## ######### #?????????????? | | ?#" ############ ## ### #?????????????? | | ?# #?###?????## ##?????????????? | | ## ### ##?????# ###??????????????? | | # #?????# ##????????????????? | | #?????# ##????????????????? | | ## #?????# ## ##???????????????? | | #### ##????# #### ##??????????????? | | #??## ##???## #?## #??????????????? | | ###???### ####?######## #??????????????? | | ????????### #????## ##??????????????? | | ??????????# ##??## #???????????????? | | ??????????## #### ### #???????????????? | | ??????????## ## ##??##???????????????? | | ??????????# ##????????????????????? | | ??????????# ##?????????????????????? | | ??????????## ##?????????????????????? | | ???????????# ##????????????????????? | | ??????????## ### """#???????#????????????? | | ??????????# ##### "*"##???##""????????????? | | ??????????# ### """ #?##""""????????????? | | ??????????## ###@ ###"""#?????????????? | | ???????????# ### #### """#????#????????? | | ???????????# ## &!&#!""##??? #????????? | | ???????????# ## % """###""#????????? | | ???????????## ### & ="""" "" #????????? | | ????????????## #?## ##%!%" # "??????????? | | ?????????????## #??## ###&% ##????????????? | | ??????????????# #???## ####= #????????????? | | ??????????????# #????# ### ##????????????? | | ??????????????# #????# ## #????????????? | | ??????????????## #????## ##????????????? | | ???????????????####?????# R #????????????? | | ????????????????????????# ##????????????? | | ????????????????????????# #????????????? | | ????????????????????????####### ###????????????? | | ??????????????????????????????#####??????????????? | | ?????????????????????????????????????????????????? | | ?????????????????????????????????????????????????? | | ?????????????????????????????????????????????????? | | ?????????????????????????????????????????????????? | | ?????????????????????????????????????????????????? | | ?????????????????????????????????????????????????? | | ?????????????????????????????????????????????????? | | ?????????????????????????????????????????????????? | | ?????????????????????????????????????????????????? | +----------------------------------------------------+ Best States ------------- Heat Dissipation 39 Energy Generation 14 Energy Capacity 250 Matter Stores 300 Matter Capacity 300 Sight Range 16 Robot Scan Range 14 Terrain Scan Density 10 Armor Coverage 150 Evasion (%) 40 Item Schematics ----------------- None Robot Schematics ------------------ None Fabricated ------------ Nothing Repaired ---------- Nothing Studied --------- None Alien Tech Used ----------------- None Achievements -------------- None Challenges ------------ None Game ------ Seed DiametricKineticShotgun Manual? 0 Play Time 00:18:39 Cumulative 23.0 hours Start 2025.10.26 @ 22:31:24 End 2025.10.27 @ 14:09:13 Sessions 4 Manual Loads 0 Difficulty Rogue Special Mode None Game No. 22 Rogue 22 Adventurer 0 Explorer 0 Win Type - Total 0 Types 0/0/0/0/0/0/0/0/0/0 Lore% 20 Gallery% 20 Achievement% 15 Wizard Run 0 Options --------- Layout 0 ASCII 0 Keyboard 0 Movement Mouse Keybinds 0 Fullscreen 2 Font 24/Smallcaps Map View 76x50 Zoom Use 0% Tactical HUD 1 Map Filters NONE Filters NONE Steam 1 RUN: ab55383d-0024-4620-b273-c988177f56ad